Workbook

Sheet ORÇAMENTO
A1: <---- NUMERAR SERVIÇOS PARA CPU | C1: Ministério do Desenvolvimento Regional
C2: Companhia de Desenvolvimento dos Vales do São Francisco e do Parnaíba
C3: 1ª Superintendência Regional
B5: OBRA: | C5: PAVIMENTAÇÃO ASFÁLTICA EM CBUQ - AV. CENTRAL (BAIRRO: VILA SION - MONTES CLAROS / MG)
B6: DATA: | C6: AGOSTO / 2023 | G6: BDI Serviços: | I6: ='BDI SERV'!D31/100 -> 0.2214
B7: PRAZO DE EXECUÇÃO: 150 DIAS | G7: BDI Serviços: | I7: ='BDI FORN'!D31/100 -> 0.15
B8: ITEM | C8: DISCRIMINAÇÃO | D8: REFER. | E8: UNID. | F8: QUANT. | G8: P. UNITÁRIO | H8: P.UNIT.C/ BDI | I8: P. TOTAL
A9: A | B9: 1 | C9: SERVIÇOS PRELIMINARES | I9: =SUM(I10:I14) -> 147410.91
A10: 1 | B10: 1.1 | C10: MOBILIZAÇÃO E DESMOBILIZAÇÃO | D10: CPU.1 | E10: GL | F10: 1 | G10: =VLOOKUP(A10,CPU!$A$1:$N$4696,9) -> 3552.6 | H10: =VLOOKUP(A10,CPU!$A$1:$N$4696,10) -> 4339.15 | I10: =ROUND(F10*H10,2) -> 4339.15
A11: 2 | B11: 1.2 | C11: ADMINISTRAÇÃO LOCAL | D11: CPU.2 | E11: GL | F11: 1 | G11: =VLOOKUP(A11,CPU!$A$1:$N$4696,9) -> 101600.85 | H11: =VLOOKUP(A11,CPU!$A$1:$N$4696,10) -> 124095.28 | I11: =ROUND(F11*H11,2) -> 124095.28
A12: 3 | B12: 1.3 | C12: CANTEIRO DE OBRAS | D12: CPU.3 | E12: GL | F12: 1 | G12: =VLOOKUP(A12,CPU!$A$1:$N$4696,9) -> 11009 | H12: =VLOOKUP(A12,CPU!$A$1:$N$4696,10) -> 13446.39 | I12: =ROUND(F12*H12,2) -> 13446.39
A13: 4 | B13: 1.4 | C13: PLACA DE OBRA EM CHAPA DE AÇO GALVANIZADO | D13: 103689 | E13: M2 | F13: 3 | G13: =VLOOKUP(A13,CPU!$A$1:$N$4696,9) -> 352.08 | H13: =VLOOKUP(A13,CPU!$A$1:$N$4696,10) -> 430.03 | I13: =ROUND(F13*H13,2) -> 1290.09
A14: 5 | B14: 1.5 | C14: SERVIÇOS TOPOGRÁFICOS PARA PAVIMENTAÇÃO, INCLUSIVE NOTA DE SERVIÇO, ACOMPANHAMENTO E GREIDE | D14: 78472 | E14: M2 | F14: 10600.003 | G14: =VLOOKUP(A14,CPU!$A$1:$N$4696,9) -> 0.33 | H14: =VLOOKUP(A14,CPU!$A$1:$N$4696,10) -> 0.4 | I14: =ROUND(F14*H14,2) -> 4240
A15: B | B15: 2 | C15: TERRAPLANAGEM E PAVIMENTAÇÃO | I15: =SUM(I16:I22) -> 363259.2
A16: 6 | B16: 2.1 | C16: ESCAVAÇÃO HORIZONTAL EM SOLO DE 1A CATEGORIA | D16: 101116 | E16: M3 | F16: 3200 | G16: =VLOOKUP(A16,CPU!$A$1:$N$4696,9) -> 1.87 | H16: =VLOOKUP(A16,CPU!$A$1:$N$4696,10) -> 2.28 | I16: =ROUND(F16*H16,2) -> 7296
A17: 7 | B17: 2.2 | C17: CARGA, MANOBRA E DESCARGA DE SOLOS E MATERIAIS GRANULARES EM CAMINHÃO BASCULANTE | D17: 100976 | E17: M3 | F17: 3200 | G17: =VLOOKUP(A17,CPU!$A$1:$N$4696,9) -> 6.45 | H17: =VLOOKUP(A17,CPU!$A$1:$N$4696,10) -> 7.88 | I17: =ROUND(F17*H17,2) -> 25216
A18: 8 | B18: 2.3 | C18: REGULARIZAÇÃO E COMPACTAÇÃO DO SUBLEITO | D18: 100576 | E18: M2 | F18: 10600 | G18: =VLOOKUP(A18,CPU!$A$1:$N$4696,9) -> 2.37 | H18: =VLOOKUP(A18,CPU!$A$1:$N$4696,10) -> 2.89 | I18: 30634
A19: 9 | B19: 2.4 | C19: EXECUÇÃO E COMPACTAÇÃO DE BASE E OU SUB BASE PARA PAVIMENTAÇÃO DE BICA CORRIDA - EXCLUSIVE TRANSPORTE | D19: 96396 | E19: M3 | F19: 1600 | G19: =VLOOKUP(A19,CPU!$A$1:$N$4696,9) -> 113.43 | H19: =VLOOKUP(A19,CPU!$A$1:$N$4696,10) -> 138.54 | I19: 221664
A20: 10 | B20: 2.5 | C20: IMPRIMAÇÃO COM EMULSÃO ASFÁLTICA (EAI) | D20: 96401 | E20: M2 | F20: 10600 | G20: =VLOOKUP(A20,CPU!$A$1:$N$4696,9) -> 1.11 | H20: =VLOOKUP(A20,CPU!$A$1:$N$4696,10) -> 1.36 | I20: 14416
A21: 11 | B21: 2.6 | C21: PINTURA DE LIGAÇÃO COM EMULSÃO ASFÁLTICA RR-1C | D21: 96402 | E21: M2 | F21: 9700 | G21: =VLOOKUP(A21,CPU!$A$1:$N$4696,9) -> 0.91 | H21: =VLOOKUP(A21,CPU!$A$1:$N$4696,10) -> 1.11 | I21: 10767
A22: 12 | B22: 2.7 | C22: EXECUÇÃO DE PAVIMENTO COM APLICAÇÃO DE CONCRETO ASFÁLTICO USINADO A QUENTE (CBUQ), CAMADA DE ROLAMENTO - EXCLUSIVE TRANSPORTE | D22: 95995 | E22: M3 | F22: 390 | G22: =VLOOKUP(A22,CPU!$A$1:$N$4696,9) -> 111.82 | H22: =VLOOKUP(A22,CPU!$A$1:$N$4696,10) -> 136.58 | I22: 53266.2
A23: C | B23: 3 | C23: TRANSPORTE DE MATERIAIS | I23: =SUM(I24:I25) -> 120504.01
A24: 13 | B24: 3.1 | C24: TRANSPORTE COM CAMINHÃO BASCULANTE, EM VIA URBANA PAVIMENTADA | D24: 95877 | E24: M3XKM | F24: 58000.00368 | G24: =VLOOKUP(A24,CPU!$A$1:$N$4696,9) -> 1.62 | H24: =VLOOKUP(A24,CPU!$A$1:$N$4696,10) -> 1.98 | I24: =ROUND(F24*H24,2) -> 114840.01
A25: 14 | B25: 3.2 | C25: TRANSPORTE COM CAMINHÃO CARROCERIA 9T, EM VIA URBANA PAVIMENTADA | D25: 100947 | E25: TXKM | F25: 2400 | G25: =VLOOKUP(A25,CPU!$A$1:$N$4696,9) -> 1.93 | H25: =VLOOKUP(A25,CPU!$A$1:$N$4696,10) -> 2.36 | I25: =ROUND(F25*H25,2) -> 5664
A26: D | B26: 4 | C26: TRANSPORTE DE MATERIAL ASFÁLTICO (BDI DIFERENCIADO) | I26: =SUM(I27:I28) -> 23244
A27: 15 | B27: 4.1 | C27: TRANSPORTE DE MASSA ASFÁLTICA COM CAMINHÃO BASCULANTE, EM VIA URBANA PAVIMENTADA (BDI DIFERENCIADO) | D27: 95880 | E27: TXKM | F27: 15000 | G27: =VLOOKUP(A27,CPU!$A$1:$N$4696,9) -> 1.08 | H27: =VLOOKUP(A27,CPU!$A$1:$N$4696,10) -> 1.24 | I27: =ROUND(F27*H27,2) -> 18600
A28: 16 | B28: 4.2 | C28: TRANSPORTE COM CAMINHÃO TANQUE DE TRANSPORTE DE MATERIAL ASFÁLTICO DE 30000 L, EM VIA URBANA PAVIMENTADA (BDI DIFERENCIADO) | D28: 102331 | E28: TXKM | F28: 8600 | G28: =VLOOKUP(A28,CPU!$A$1:$N$4696,9) -> 0.47 | H28: =VLOOKUP(A28,CPU!$A$1:$N$4696,10) -> 0.54 | I28: =ROUND(F28*H28,2) -> 4644
A29: E | B29: 5 | C29: OBRAS COMPLEMENTARES | I29: =SUM(I30:I35) -> 268101.64
A30: 17 | B30: 5.1 | C30: ASSENTAMENTO DE GUIA (MEIO-FIO) EM TRECHO RETO, CONFECCIONADA EM CONCRETO PRÉ-FABRICADO, DIMENSÕES 100X12X10X30 CM (COMPRIMENTO X BASE INFERIOR X BASE SUPERIOR X ALTURA), PARA VIAS URBANAS (USO VIÁRIO) | D30: 94273a | E30: M | F30: 2000 | G30: =VLOOKUP(A30,CPU!$A$1:$N$4696,9) -> 53.39 | H30: =VLOOKUP(A30,CPU!$A$1:$N$4696,10) -> 65.21 | I30: =ROUND(F30*H30,2) -> 130420
A31: 18 | B31: 5.2 | C31: EXECUÇÃO DE SARJETA DE CONCRETO USINADO, MOLDADA IN LOCO EM TRECHO RETO, 30 CM BASE X 5 CM ALTURA | D31: 94281a | E31: M | F31: 2000 | G31: =VLOOKUP(A31,CPU!$A$1:$N$4696,9) -> 39 | H31: =VLOOKUP(A31,CPU!$A$1:$N$4696,10) -> 47.63 | I31: =ROUND(F31*H31,2) -> 95260
A32: 19 | B32: 5.3 | C32: FORNECIMENTO E INSTALAÇÃO DE PLACA DE SINALIZAÇÃO VIÁRIA - REGULAMENTAÇÃO CIRCULAR | D32: CPU.4 | E32: UN. | F32: 3 | G32: =VLOOKUP(A32,CPU!$A$1:$N$4696,9) -> 422.53 | H32: =VLOOKUP(A32,CPU!$A$1:$N$4696,10) -> 516.08 | I32: =ROUND(F32*H32,2) -> 1548.24
A33: 20 | B33: 5.4 | C33: FORNECIMENTO E INSTALAÇÃO DE PLACA DE SINALIZAÇÃO VIÁRIA - REGULAMENTAÇÃO (PARE) | D33: CPU.5 | E33: UN. | F33: 16 | G33: =VLOOKUP(A33,CPU!$A$1:$N$4696,9) -> 482.45 | H33: =VLOOKUP(A33,CPU!$A$1:$N$4696,10) -> 589.26 | I33: =ROUND(F33*H33,2) -> 9428.16
A34: 21 | B34: 5.5 | C34: FORNECIMENTO E INSTALAÇÃO DE PLACA DE AÇO PARA IDENTIFICACAO DE RUA, *45 CM X 20* CM, INCLUSIVE SUPORTE EM TUBO DE AÇO GALVANIZADO | D34: CPU.6 | E34: UN. | F34: 16 | G34: =VLOOKUP(A34,CPU!$A$1:$N$4696,9) -> 321.88 | H34: =VLOOKUP(A34,CPU!$A$1:$N$4696,10) -> 393.14 | I34: =ROUND(F34*H34,2) -> 6290.24
A35: 22 | B35: 5.6 | C35: PINTURA DE EIXO VIÁRIO SOBRE ASFALTO COM TINTA RETRORREFLETIVA A BASE DE RESINA ACRÍLICA COM MICROESFERAS DE VIDRO, APLICAÇÃO MECÂNICA COM DEMARCADORA AUTOPROPELIDA (ESP.=10CM) | D35: 102512 | E35: M | F35: 3900 | G35: =VLOOKUP(A35,CPU!$A$1:$N$4696,9) -> 5.28 | H35: =VLOOKUP(A35,CPU!$A$1:$N$4696,10) -> 6.45 | I35: =ROUND(F35*H35,2) -> 25155
A36: F | B36: 6 | C36: FORNECIMENTOS - MATERIAL ASFÁLTICO (BDI DIFERENCIADO) | I36: =SUM(I37:I39) -> 746391.03
A37: 23 | B37: 6.1 | C37: AQUISIÇÃO DE EMULSÃO ASFÁLTICA PARA IMPRIMAÇÃO (EAI) - EXCLUSIVE TRANSPORTE | D37: CPU.7 | E37: T | F37: 14 | G37: =VLOOKUP(A37,CPU!$A$1:$N$4696,9) -> 2769.65 | H37: =VLOOKUP(A37,CPU!$A$1:$N$4696,10) -> 3185.1 | I37: =ROUND(F37*H37,2) -> 44591.4
A38: 24 | B38: 6.2 | C38: AQUISIÇÃO DE EMULSAO ASFALTICA CATIONICA RR-1C - EXCLUSIVE TRANSPORTE | D38: CPU.8 | E38: T | F38: 4.495 | G38: =VLOOKUP(A38,CPU!$A$1:$N$4696,9) -> 2837.6 | H38: =VLOOKUP(A38,CPU!$A$1:$N$4696,10) -> 3263.24 | I38: =ROUND(F38*H38,2) -> 14668.26
A39: 25 | B39: 6.3 | C39: AQUISIÇÃO DE CONCRETO BETUMINOSO USINADO A QUENTE (CBUQ) PARA PAVIMENTACAO ASFALTICA, PADRAO DNIT, FAIXA C, COM CAP 50/70 - EXCLUSIVE TRANSPORTE | D39: CPU.9 | E39: T | F39: 1000.002 | G39: =VLOOKUP(A39,CPU!$A$1:$N$4696,9) -> 597.5 | H39: =VLOOKUP(A39,CPU!$A$1:$N$4696,10) -> 687.13 | I39: 687131.37
B40: TOTAL GERAL DA OBRA COM BDI | I40: =SUM(I9,I15,I23,I29,I36,I26) -> 1668910.79

Sheet CPU
A1: 1 | B1: CODEVASF | E1: COMPOSIÇÃO DE PREÇO UNITÁRIO | I1: =H11 -> 3552.6 | J1: =H13 -> 4339.15 | K1: BDI CALCULADO: | M1: =ORÇAMENTO!I6 -> 0.2214
B2: OBRA: | C2: =ORÇAMENTO!C5 -> PAVIMENTAÇÃO ASFÁLTICA EM CBUQ - AV. CENTRAL (BAIRRO: VILA SION - MONTES CLAROS / MG) | G2: DATA: | H2: =ORÇAMENTO!C6 -> AGOSTO / 2023 | K2: BDI DIFERENCIADO: | M2: ='BDI FORN'!D31/100 -> 0.15
B3: SERVIÇO: | C3: =VLOOKUP(A1,ORÇAMENTO!A10:I30,3) -> MOBILIZAÇÃO E DESMOBILIZAÇÃO | E3: Referência: | F3: =VLOOKUP(A1,ORÇAMENTO!$A$10:$I$30,4) -> CPU.1 | G3: UNIDADE: | H3: =VLOOKUP(A1,ORÇAMENTO!A10:I30,5) -> GL
B5: TIPO ITEM | C5: CODIGO ITEM | D5: DESCRIÇÃO ITEM | E5: UNIDADE ITEM | F5: COEFICIENTE | G5: PRECO UNITARIO | H5: CUSTO TOTAL
B6: COMPOSICAO | C6: 89876 | D6: CAMINHÃO BASCULANTE 14 M3, COM CAVALO MECÂNICO DE CAPACIDADE MÁXIMA DE TRAÇÃO COMBINADO DE 36000 KG, POTÊNCIA 286 CV, INCLUSIVE SEMIREBOQUE COM CAÇAMBA METÁLICA | E6: CHP DIURNO. | F6: 8 | G6: 287.48 | H6: =ROUNDDOWN(F6*G6,2) -> 2299.84
B7: COMPOSICAO | C7: 89877 | D7: CAMINHÃO BASCULANTE 14 M3, COM CAVALO MECÂNICO DE CAPACIDADE MÁXIMA DE TRAÇÃO COMBINADO DE 36000 KG, POTÊNCIA 286 CV, INCLUSIVE SEMIREBOQUE COM CAÇAMBA METÁLICA | E7: CHI DIURNO. | F7: 8 | G7: 82.59 | H7: =ROUNDDOWN(F7*G7,2) -> 660.72
B8: COMPOSICAO | C8: 5914640 | D8: TRANSPORTE COM CAVALO MECÂNICO COM SEMIRREBOQUE COM CAPACIDADE DE 30 T - RODOVIA PAVIMENTADA | E8: T.KM | F8: 484 | G8: 0.57 | H8: 275.88
B9: COMPOSIÇÃO | C9: 88316 | D9: SERVENTE COM ENCARGOS COMPLEMENTARES | E9: H | F9: 16 | G9: 19.76 | H9: 316.16
B10: PRODUÇÃO DA EQUIPE | E10: 1 | F10: CUSTO | H10: =SUM(H6:H9) -> 3552.6
B11: TOTAL | H11: =H10/E10 -> 3552.6 | I11: OK
B12: BDI % | H12: =1+$M$1 -> 1.2214
B13: TOTAL DO SERVIÇO - R$ | H13: =ROUND(H11*H12,2) -> 4339.15
A15: =A1+1 -> 2 | B15: CODEVASF | E15: COMPOSIÇÃO DE PREÇO UNITÁRIO | I15: =H29 -> 101600.85 | J15: =H31 -> 124095.28
B16: OBRA: | C16: =$C$2 -> PAVIMENTAÇÃO ASFÁLTICA EM CBUQ - AV. CENTRAL (BAIRRO: VILA SION - MONTES CLAROS / MG) | G16: DATA: | H16: =$H$2 -> AGOSTO / 2023
B17: SERVIÇO: | C17: =VLOOKUP(A15,ORÇAMENTO!$A$10:$I$30,3) -> ADMINISTRAÇÃO LOCAL | E17: SINAPI | F17: =VLOOKUP(A15,ORÇAMENTO!$A$10:$I$30,4) -> CPU.2 | G17: UNIDADE: | H17: =VLOOKUP(A15,ORÇAMENTO!$A$10:$I$30,5) -> GL
B19: TIPO ITEM | C19: CODIGO ITEM | D19: DESCRIÇÃO ITEM | E19: UNIDADE ITEM | F19: COEFICIENTE | G19: PRECO UNITARIO | H19: CUSTO TOTAL
B20: INSUMO | C20: 14250 | D20: ENERGIA ELÉTRICA | E20: kwh | F20: 60 | G20: 0.86 | H20: =ROUNDDOWN(F20*G20,2) -> 51.6
B21: INSUMO | C21: 44480 | D21: TARIFA "A" - ÁGUA/ESGOTO | E21: m³ | F21: 6 | G21: 16.27 | H21: 97.62
B22: COTAÇÃO | C22: MERC. | D22: TELEFONE (PLANO CONTROLE) | E22: UNID | F22: 3 | G22: 59.9 | H22: 179.7
B23: INSUMO | C23: ED-50155 SEINFRA | D23: BANHEIRO QUÍMICO 110 X 120 X 230 CM COM MANUTENÇÃO (CONSIDERANDO OBRAS SIMULTÂNEAS) | E23: MÊS | F23: 2 | G23: 515 | H23: 1030
B24: COMPOSICAO | C24: 90777 | D24: Engenheiro Civil Júnior com encargos complementares | E24: H | F24: 55 | G24: 114.12 | H24: 6276.6
B25: COMPOSICAO | C25: 90776 | D25: Encarregado Geral com encargos complementares | E25: H | F25: 110 | G25: 57.73 | H25: 6350.3
B26: COMPOSICAO | C26: 88321 | D26: Tecnico de Laboratório com encargos complementares | E26: H | F26: 110 | G26: 45.67 | H26: 5023.7
B27: COMPOSICAO | C27: 90772 | D27: Auxiliar de escritório com encargos complementares | E27: H | F27: 55 | G27: 23.83 | H27: 1310.65
B28: PRODUÇÃO DA EQUIPE | E28: 0.2 | F28: CUSTO | H28: =SUM(H20:H27) -> 20320.17
B29: TOTAL | H29: =ROUND(H28/E28,2) -> 101600.85 | I29: OK
B30: BDI % | H30: =1+$M$1 -> 1.2214
B31: TOTAL DO SERVIÇO - R$ | H31: =ROUND(H29*H30,2) -> 124095.28
A33: =A15+1 -> 3 | B33: CODEVASF | E33: COMPOSIÇÃO DE PREÇO UNITÁRIO | I33: =H43 -> 11009 | J33: =H45 -> 13446.39
B34: OBRA: | C34: =$C$2 -> PAVIMENTAÇÃO ASFÁLTICA EM CBUQ - AV. CENTRAL (BAIRRO: VILA SION - MONTES CLAROS / MG) | G34: DATA: | H34: =$H$2 -> AGOSTO / 2023
B35: SERVIÇO: | C35: =VLOOKUP(A33,ORÇAMENTO!$A$10:$I$30,3) -> CANTEIRO DE OBRAS | E35: SINAPI | F35: =VLOOKUP(A33,ORÇAMENTO!$A$10:$I$30,4) -> CPU.3 | G35: UNIDADE: | H35: =VLOOKUP(A33,ORÇAMENTO!$A$10:$I$30,5) -> GL
B37: TIPO ITEM | C37: CODIGO ITEM | D37: DESCRIÇÃO ITEM | E37: UNIDADE ITEM | F37: COEFICIENTE | G37: PRECO UNITARIO | H37: CUSTO TOTAL
B38: INSUMO | C38: 10775 | D38: LOCACAO DE CONTAINER 2,30 X 6,00 M, ALT. 2,50 M, COM 1 SANITARIO, PARA ESCRITORIO,COMPLETO, SEM DIVISORIAS INTERNAS | E38: MÊS | F38: 5 | G38: 1040 | H38: =ROUNDDOWN(F38*G38,2) -> 5200
B39: INSUMO | C39: 10779 | D39: LOCACAO DE CONTAINER 2,30 X 4,30 M, ALT. 2,50 M, P/ SANITARIO, C/ 5 BACIAS, 1 LAVATORIO E 4 MICTORIOS | E39: MÊS | F39: 5 | G39: 1040 | H39: =ROUNDDOWN(F39*G39,2) -> 5200
B40: INSUMO | C40: 37525 | D40: TELA PLASTICA TECIDA LISTRADA BRANCA E LARANJA, TIPO GUARDA CORPO, EM POLIETILENO MONOFILADO, ROLO 1,20 X 50 M (L X C) | E40: M | F40: 100 | G40: 3.69 | H40: 369
B41: COMPOSICAO | C41: - | D41: PLACA DE SINALIZAÇÃO - "PERIGO - OBRAS A FRENTE" - FORNECIMENTO E MOVIMENTAÇÃO | E41: UNID. | F41: 12 | G41: 20 | H41: 240
B42: PRODUÇÃO DA EQUIPE | E42: 1 | F42: CUSTO | H42: =SUM(H38:H41) -> 11009
B43: TOTAL | H43: =H42/E42 -> 11009 | I43: OK
B44: BDI % | H44: =1+$M$1 -> 1.2214
B45: TOTAL DO SERVIÇO - R$ | H45: =ROUND(H43*H44,2) -> 13446.39
A47: =A33+1 -> 4 | B47: CODEVASF | E47: COMPOSIÇÃO DE PREÇO UNITÁRIO | I47: =H61 -> 352.08 | J47: =H63 -> 430.03
B48: OBRA: | C48: =$C$2 -> PAVIMENTAÇÃO ASFÁLTICA EM CBUQ - AV. CENTRAL (BAIRRO: VILA SION - MONTES CLAROS / MG) | G48: DATA: | H48: =$H$2 -> AGOSTO / 2023
B49: SERVIÇO: | C49: =VLOOKUP(A47,ORÇAMENTO!$A$10:$I$30,3) -> PLACA DE OBRA EM CHAPA DE AÇO GALVANIZADO | E49: SINAPI | F49: =VLOOKUP(A47,ORÇAMENTO!$A$10:$I$30,4) -> 103689 | G49: UNIDADE: | H49: =VLOOKUP(A47,ORÇAMENTO!$A$10:$I$30,5) -> M2
B51: TIPO ITEM | C51: CODIGO ITEM | D51: DESCRIÇÃO ITEM | E51: UNIDADE ITEM | F51: COEFICIENTE | G51: PRECO UNITARIO | H51: CUSTO TOTAL
B52: INSUMO | C52: 4509 | D52: SARRAFO *2,5 X 10* CM EM PINUS, MISTA OU EQUIVALENTE DA REGIAO - BRUTA | E52: M | F52: 3,2083000 | G52: 4,39 | H52: =ROUNDDOWN(F52*G52,2) -> 14.08
B53: INSUMO | C53: 4813 | D53: PLACA DE OBRA (PARA CONSTRUCAO CIVIL) EM CHAPA GALVANIZADA *N. 22*, ADESIVADA, DE *2,4 X 1,2* M | E53: M2 | F53: 1,0000000 | G53: 250,00 | H53: 250
B54: INSUMO | C54: 4115 | D54: MADEIRA ROLICA TRATADA, D = 12 A 15 CM, EM EUCALIPTO OU EQUIVALENTE DA REGIAO | E54: M | F54: 2 | G54: 22.01 | H54: =ROUNDDOWN(F54*G54,2) -> 44.02
B55: INSUMO | C55: 5065 | D55: PREGO DE ACO POLIDO COM CABECA 10 X 10 (7/8 X 17) | E55: KG | F55: 0,0113000 | G55: 38,80 | H55: 0.43
B56: INSUMO | C56: 5069 | D56: PREGO DE ACO POLIDO COM CABECA 17 X 27 (2 1/2 X 11) | E56: KG | F56: 0,0132000 | G56: 20,79 | H56: 0.27
B57: COMPOSICAO | C57: 88262 | D57: CARPINTEIRO DE FORMAS COM ENCARGOS COMPLEMENTARES | E57: H | F57: 0,3729000 | G57: 27,05 | H57: 10.08
B58: COMPOSICAO | C58: 88316 | D58: SERVENTE COM ENCARGOS COMPLEMENTARES | E58: H | F58: 1,1186000 | G58: 19,76 | H58: 22.1
B59: COMPOSICAO | C59: 102234 | D59: PINTURA IMUNIZANTE PARA MADEIRA, 2 DEMÃOS | E59: M2 | F59: 0,5000000 | G59: 22,20 | H59: 11.1
B60: PRODUÇÃO DA EQUIPE | E60: 1 | F60: CUSTO | H60: =SUM(H52:H59) -> 352.08
B61: TOTAL | H61: =H60/E60 -> 352.08 | I61: OK
B62: BDI % | H62: =1+$M$1 -> 1.2214
B63: TOTAL DO SERVIÇO - R$ | H63: =ROUND(H61*H62,2) -> 430.03
A65: =A47+1 -> 5 | B65: CODEVASF | E65: COMPOSIÇÃO DE PREÇO UNITÁRIO | I65: =H77 -> 0.33 | J65: =H79 -> 0.4
B66: OBRA: | C66: =$C$2 -> PAVIMENTAÇÃO ASFÁLTICA EM CBUQ - AV. CENTRAL (BAIRRO: VILA SION - MONTES CLAROS / MG) | G66: DATA: | H66: =$H$2 -> AGOSTO / 2023
B67: SERVIÇO: | C67: =VLOOKUP(A65,ORÇAMENTO!$A$10:$I$30,3) -> SERVIÇOS TOPOGRÁFICOS PARA PAVIMENTAÇÃO, INCLUSIVE NOTA DE SERVIÇO, ACOMPANHAMENTO E GREIDE | E67: SINAPI | F67: =VLOOKUP(A65,ORÇAMENTO!$A$10:$I$30,4) -> 78472 | G67: UNIDADE: | H67: =VLOOKUP(A65,ORÇAMENTO!$A$10:$I$30,5) -> M2
B69: TIPO ITEM | C69: CODIGO ITEM | D69: DESCRIÇÃO ITEM | E69: UNIDADE ITEM | F69: COEFICIENTE | G69: PRECO UNITARIO | H69: CUSTO TOTAL
B70: COMPOSICAO | C70: 88253 | D70: AUXILIAR DE TOPÓGRAFO COM ENCARGOS COMPLEMENTARES | E70: H | F70: 0.0025 | G70: 20.32 | H70: =ROUNDDOWN(F70*G70,2) -> 0.05
B71: COMPOSICAO | C71: 88288 | D71: NIVELADOR COM ENCARGOS COMPLEMENTARES | E71: H | F71: 0.0025 | G71: 25.4 | H71: =ROUNDDOWN(F71*G71,2) -> 0.06
B72: COMPOSICAO | C72: 88316 | D72: SERVENTE COM ENCARGOS COMPLEMENTARES | E72: H | F72: 0.0075 | G72: 19.76 | H72: 0.14
B73: COMPOSICAO | C73: 88597 | D73: DESENHISTA DETALHISTA COM ENCARGOS COMPLEMENTARES | E73: H | F73: 0.002 | G73: 27.95 | H73: 0.05
B74: COMPOSICAO | C74: 92145 | D74: CAMINHONETE CABINE SIMPLES COM MOTOR 1.6 FLEX, CÂMBIO MANUAL, POTÊNCIA 101/104 CV, 2 PORTAS | E74: CHP | F74: 0.0005 | G74: 72.79 | H74: 0.03
H75: =ROUNDDOWN(F75*G75,2) -> 0
B76: PRODUÇÃO DA EQUIPE | E76: 1 | F76: CUSTO | H76: =SUM(H70:H75) -> 0.33
B77: TOTAL | H77: =H76/E76 -> 0.33 | I77: OK
B78: BDI % | H78: =1+$M$1 -> 1.2214
B79: TOTAL DO SERVIÇO - R$ | H79: =ROUND(H77*H78,2) -> 0.4
A81: =A65+1 -> 6 | B81: CODEVASF | E81: COMPOSIÇÃO DE PREÇO UNITÁRIO | I81: =H90 -> 1.87 | J81: =H92 -> 2.28
B82: OBRA: | C82: =$C$2 -> PAVIMENTAÇÃO ASFÁLTICA EM CBUQ - AV. CENTRAL (BAIRRO: VILA SION - MONTES CLAROS / MG) | G82: DATA: | H82: =$H$2 -> AGOSTO / 2023
B83: SERVIÇO: | C83: =VLOOKUP(A81,ORÇAMENTO!$A$10:$I$30,3) -> ESCAVAÇÃO HORIZONTAL EM SOLO DE 1A CATEGORIA | E83: SINAPI | F83: =VLOOKUP(A81,ORÇAMENTO!$A$10:$I$30,4) -> 101116 | G83: UNIDADE: | H83: =VLOOKUP(A81,ORÇAMENTO!$A$10:$I$30,5) -> M3
B85: TIPO ITEM | C85: CODIGO ITEM | D85: DESCRIÇÃO ITEM | E85: UNIDADE ITEM | F85: COEFICIENTE | G85: PRECO UNITARIO | H85: CUSTO TOTAL
B86: COMPOSICAO | C86: 5847 | D86: TRATOR DE ESTEIRAS, POTÊNCIA 170 HP, PESO OPERACIONAL 19 T, CAÇAMBA 5,2 M3 | E86: CHP | F86: 0,0048000 | G86: 217,11 | H86: =ROUNDDOWN(F86*G86,2) -> 1.04
B87: COMPOSICAO | C87: 5849 | D87: TRATOR DE ESTEIRAS, POTÊNCIA 170 HP, PESO OPERACIONAL 19 T, CAÇAMBA 5,2 M3 | E87: CHI | F87: 0,0082000 | G87: 71,35 | H87: 0.58
B88: COMPOSICAO | C88: 88316 | D88: SERVENTE COM ENCARGOS COMPLEMENTARES | E88: H | F88: 0,0131000 | G88: 19,76 | H88: 0.25
B89: PRODUÇÃO DA EQUIPE | E89: 1 | F89: CUSTO | H89: =SUM(H86:H88) -> 1.87
B90: TOTAL | H90: =H89/E89 -> 1.87 | I90: OK
B91: BDI % | H91: =1+$M$1 -> 1.2214
B92: TOTAL DO SERVIÇO - R$ | H92: =ROUND(H90*H91,2) -> 2.28
A94: 7 | B94: CODEVASF | E94: COMPOSIÇÃO DE PREÇO UNITÁRIO | I94: =H104 -> 6.45 | J94: =H106 -> 7.88
B95: OBRA: | C95: =$C$2 -> PAVIMENTAÇÃO ASFÁLTICA EM CBUQ - AV. CENTRAL (BAIRRO: VILA SION - MONTES CLAROS / MG) | G95: DATA: | H95: =$H$2 -> AGOSTO / 2023
B96: SERVIÇO: | C96: =VLOOKUP(A94,ORÇAMENTO!$A$10:$I$30,3) -> CARGA, MANOBRA E DESCARGA DE SOLOS E MATERIAIS GRANULARES EM CAMINHÃO BASCULANTE | E96: SINAPI | F96: =VLOOKUP(A94,ORÇAMENTO!$A$10:$I$30,4) -> 100976 | G96: UNIDADE: | H96: =VLOOKUP(A94,ORÇAMENTO!$A$10:$I$30,5) -> M3
B98: TIPO ITEM | C98: CODIGO ITEM | D98: DESCRIÇÃO ITEM | E98: UNIDADE ITEM | F98: COEFICIENTE | G98: PRECO UNITARIO | H98: CUSTO TOTAL
B99: COMPOSICAO | C99: 5940 | D99: PÁ CARREGADEIRA SOBRE RODAS, POTÊNCIA LÍQUIDA 128 HP, CAPACIDADE DA CAÇAMBA 1,7 A 2,8 M3, PESO OPERACIONAL 11632 KG | E99: CHP | F99: 0,0083000 | G99: 203,10 | H99: =ROUNDDOWN(F99*G99,2) -> 1.68
B100: COMPOSICAO | C100: 5942 | D100: PÁ CARREGADEIRA SOBRE RODAS, POTÊNCIA LÍQUIDA 128 HP, CAPACIDADE DA CAÇAMBA 1,7 A 2,8 M3, PESO OPERACIONAL 11632 KG | E100: CHI | F100: 0,0074000 | G100: 83,73 | H100: 0.61
B101: COMPOSICAO | C101: 89883 | D101: CAMINHÃO BASCULANTE 18 M3, COM CAVALO MECÂNICO DE CAPACIDADE MÁXIMA DE TRAÇÃO COMBINADO DE 45000 KG, POTÊNCIA 330 CV, INCLUSIVE SEMIREBOQUE COM CAÇAMBA METÁLICA | E101: CHP | F101: 0.0106253 | G101: 316,09 | H101: 3.35
B102: COMPOSICAO | C102: 89884 | D102: CAMINHÃO BASCULANTE 18 M3, COM CAVALO MECÂNICO DE CAPACIDADE MÁXIMA DE TRAÇÃO COMBINADO DE 45000 KG, POTÊNCIA 330 CV, INCLUSIVE SEMIREBOQUE COM CAÇAMBA METÁLICA | E102: CHI | F102: 0,0095000 | G102: 86,09 | H102: 0.81
B103: PRODUÇÃO DA EQUIPE | E103: 1 | F103: CUSTO | H103: =SUM(H99:H102) -> 6.45
B104: TOTAL | H104: =H103/E103 -> 6.45 | I104: OK
B105: BDI % | H105: =1+$M$1 -> 1.2214
B106: TOTAL DO SERVIÇO - R$ | H106: =ROUND(H104*H105,2) -> 7.88
A108: 8 | B108: CODEVASF | E108: COMPOSIÇÃO DE PREÇO UNITÁRIO | I108: =H122 -> 2.37 | J108: =H124 -> 2.89
B109: OBRA: | C109: =$C$2 -> PAVIMENTAÇÃO ASFÁLTICA EM CBUQ - AV. CENTRAL (BAIRRO: VILA SION - MONTES CLAROS / MG) | G109: DATA: | H109: =$H$2 -> AGOSTO / 2023
B110: SERVIÇO: | C110: =VLOOKUP(A108,ORÇAMENTO!$A$10:$I$30,3) -> REGULARIZAÇÃO E COMPACTAÇÃO DO SUBLEITO | E110: SICRO | F110: =VLOOKUP(A108,ORÇAMENTO!$A$10:$I$30,4) -> 100576 | G110: UNIDADE: | H110: M2
B112: TIPO ITEM | C112: CODIGO ITEM | D112: DESCRIÇÃO ITEM | E112: UNIDADE ITEM | F112: COEFICIENTE | G112: PRECO UNITARIO | H112: CUSTO TOTAL
B113: COMPOSICAO | C113: 5901 | D113: CAMINHÃO PIPA 10.000 L TRUCADO, PESO BRUTO TOTAL 23.000 KG, CARGA ÚTIL MÁXIMA 15.935 KG, DISTÂNCIA ENTRE EIXOS 4,8 M, POTÊNCIA 230 CV, INCLUSIVE TANQUE DE AÇO PARA TRANSPORTE DE ÁGUA - CHP DIURNO. AF_06/2014 | E113: CHP | F113: 0,0010000 | G113: 267,67 | H113: =ROUNDDOWN(F113*G113,2) -> 0.26
B114: COMPOSICAO | C114: 5903 | D114: CAMINHÃO PIPA 10.000 L TRUCADO, PESO BRUTO TOTAL 23.000 KG, CARGA ÚTIL MÁXIMA 15.935 KG, DISTÂNCIA ENTRE EIXOS 4,8 M, POTÊNCIA 230 CV, INCLUSIVE TANQUE DE AÇO PARA TRANSPORTE DE ÁGUA - CHI DIURNO. AF_06/2014 | E114: CHI | F114: 0,0070000 | G114: 67,79 | H114: =ROUNDDOWN(F114*G114,2) -> 0.47
B115: COMPOSICAO | C115: 5932 | D115: MOTONIVELADORA POTÊNCIA BÁSICA LÍQUIDA (PRIMEIRA MARCHA) 125 HP, PESO BRUTO 13032 KG, LARGURA DA LÂMINA DE 3,7 M - CHP DIURNO. AF_06/2014 | E115: CHP | F115: 0,0001000 | G115: 236,38 | H115: 0.02
B116: COMPOSICAO | C116: 5934 | D116: MOTONIVELADORA POTÊNCIA BÁSICA LÍQUIDA (PRIMEIRA MARCHA) 125 HP, PESO BRUTO 13032 KG, LARGURA DA LÂMINA DE 3,7 M - CHI DIURNO. AF_06/2014 | E116: CHI | F116: 0,0080000 | G116: 92,27 | H116: 0.73
B117: COMPOSICAO | C117: 73436 | D117: ROLO COMPACTADOR VIBRATÓRIO PÉ DE CARNEIRO PARA SOLOS, POTÊNCIA 80 HP, PESO OPERACIONAL SEM/COM LASTRO 7,4 / 8,8 T, LARGURA DE TRABALHO 1,68 M - CHP DIURNO. AF_02/2016 | E117: CHP | F117: 0,0020000 | G117: 192,91 | H117: 0.38
B118: COMPOSICAO | C118: 88316 | D118: SERVENTE COM ENCARGOS COMPLEMENTARES | E118: H | F118: 0,0080000 | G118: 19,76 | H118: 0.15
B119: COMPOSICAO | C119: 93244 | D119: ROLO COMPACTADOR VIBRATÓRIO PÉ DE CARNEIRO PARA SOLOS, POTÊNCIA 80 HP, PESO OPERACIONAL SEM/COM LASTRO 7,4 / 8,8 T, LARGURA DE TRABALHO 1,68 M - CHI DIURNO. AF_02/2016 | E119: CHI | F119: 0,0060000 | G119: 60,72 | H119: 0.36
B121: PRODUÇÃO DA EQUIPE | E121: 1 | F121: CUSTO | H121: =SUM(H113:H120) -> 2.37
B122: TOTAL | H122: =H121/E121 -> 2.37 | I122: OK
B123: BDI % | H123: =1+$M$1 -> 1.2214
B124: TOTAL DO SERVIÇO - R$ | H124: =ROUND(H122*H123,2) -> 2.89
A126: 9 | B126: CODEVASF | E126: COMPOSIÇÃO DE PREÇO UNITÁRIO | I126: =H142 -> 113.43 | J126: =H144 -> 138.54
B127: OBRA: | C127: =$C$2 -> PAVIMENTAÇÃO ASFÁLTICA EM CBUQ - AV. CENTRAL (BAIRRO: VILA SION - MONTES CLAROS / MG) | G127: DATA: | H127: =$H$2 -> AGOSTO / 2023
B128: SERVIÇO: | C128: =VLOOKUP(A126,ORÇAMENTO!$A$10:$I$30,3) -> EXECUÇÃO E COMPACTAÇÃO DE BASE E OU SUB BASE PARA PAVIMENTAÇÃO DE BICA CORRIDA - EXCLUSIVE TRANSPORTE | E128: SINAPI | F128: =VLOOKUP(A126,ORÇAMENTO!$A$10:$I$30,4) -> 96396 | G128: UNIDADE: | H128: =VLOOKUP(A126,ORÇAMENTO!$A$10:$I$30,5) -> M3
B130: TIPO ITEM | C130: CODIGO ITEM | D130: DESCRIÇÃO ITEM | E130: UNIDADE ITEM | F130: COEFICIENTE | G130: PRECO UNITARIO | H130: CUSTO TOTAL
B131: COMPOSICAO | C131: 5684 | D131: ROLO COMPACTADOR VIBRATÓRIO DE UM CILINDRO AÇO LISO, POTÊNCIA 80 HP, PESO OPERACIONAL MÁXIMO 8,1 T, IMPACTO DINÂMICO 16,15 / 9,5 T, LARGURA DE TRABALHO 1,68 M - CHP DIURNO. AF_06/2014 | E131: CHP | F131: 0,0090000 | G131: 142,77 | H131: =ROUNDDOWN(F131*G131,2) -> 1.28
B132: COMPOSICAO | C132: 5685 | D132: ROLO COMPACTADOR VIBRATÓRIO DE UM CILINDRO AÇO LISO, POTÊNCIA 80 HP, PESO OPERACIONAL MÁXIMO 8,1 T, IMPACTO DINÂMICO 16,15 / 9,5 T, LARGURA DE TRABALHO 1,68 M - CHI DIURNO. AF_06/2014 | E132: CHI | F132: 0,0210000 | G132: 59,30 | H132: 1.24
B133: COMPOSICAO | C133: 5901 | D133: CAMINHÃO PIPA 10.000 L TRUCADO, PESO BRUTO TOTAL 23.000 KG, CARGA ÚTIL MÁXIMA 15.935 KG, DISTÂNCIA ENTRE EIXOS 4,8 M, POTÊNCIA 230 CV, INCLUSIVE TANQUE DE AÇO PARA TRANSPORTE DE ÁGUA - CHP DIURNO. AF_06/2014 | E133: CHP | F133: 0,0020000 | G133: 267,67 | H133: 0.53
B134: COMPOSICAO | C134: 5903 | D134: CAMINHÃO PIPA 10.000 L TRUCADO, PESO BRUTO TOTAL 23.000 KG, CARGA ÚTIL MÁXIMA 15.935 KG, DISTÂNCIA ENTRE EIXOS 4,8 M, POTÊNCIA 230 CV, INCLUSIVE TANQUE DE AÇO PARA TRANSPORTE DE ÁGUA - CHI DIURNO. AF_06/2014 | E134: CHI | F134: 0,0280000 | G134: 67,79 | H134: 1.89
B135: COMPOSICAO | C135: 5932 | D135: MOTONIVELADORA POTÊNCIA BÁSICA LÍQUIDA (PRIMEIRA MARCHA) 125 HP, PESO BRUTO 13032 KG, LARGURA DA LÂMINA DE 3,7 M - CHP DIURNO. AF_06/2014 | E135: CHP | F135: 0,0080000 | G135: 236,38 | H135: 1.89
B136: COMPOSICAO | C136: 5934 | D136: MOTONIVELADORA POTÊNCIA BÁSICA LÍQUIDA (PRIMEIRA MARCHA) 125 HP, PESO BRUTO 13032 KG, LARGURA DA LÂMINA DE 3,7 M - CHI DIURNO. AF_06/2014 | E136: CHI | F136: 0,0220000 | G136: 92,27 | H136: 2.02
B137: COMPOSICAO | C137: 88316 | D137: SERVENTE COM ENCARGOS COMPLEMENTARES | E137: H | F137: 0,0300000 | G137: 19,76 | H137: 0.59
B138: COMPOSICAO | C138: 96394 | D138: BICA CORRIDA, SEM FRETE | E138: M3 | F138: 1,0000000 | G138: 101.06 | H138: 101.06
B139: COMPOSICAO | C139: 96463 | D139: ROLO COMPACTADOR DE PNEUS, ESTATICO, PRESSAO VARIAVEL, POTENCIA 110 HP, PESO SEM/COM LASTRO 10,8/27 T, LARGURA DE ROLAGEM 2,30 M - CHP DIURNO. AF_06/2017 | E139: CHP | F139: 0,0040000 | G139: 197,38 | H139: 0.78
B140: COMPOSICAO | C140: 96464 | D140: ROLO COMPACTADOR DE PNEUS, ESTATICO, PRESSAO VARIAVEL, POTENCIA 110 HP, PESO SEM/COM LASTRO 10,8/27 T, LARGURA DE ROLAGEM 2,30 M - CHI DIURNO. AF_06/2017 | E140: CHI | F140: 0,0260000 | G140: 82,85 | H140: 2.15
B141: PRODUÇÃO DA EQUIPE | E141: 1 | F141: CUSTO | H141: =SUM(H131:H140) -> 113.43
B142: TOTAL | H142: =H141/E141 -> 113.43 | I142: OK
B143: BDI % | H143: =1+$M$1 -> 1.2214
B144: TOTAL DO SERVIÇO - R$ | H144: =ROUND(H142*H143,2) -> 138.54
A146: 10 | B146: CODEVASF | E146: COMPOSIÇÃO DE PREÇO UNITÁRIO | I146: =H161 -> 1.11 | J146: =H163 -> 1.36
B147: OBRA: | C147: =$C$2 -> PAVIMENTAÇÃO ASFÁLTICA EM CBUQ - AV. CENTRAL (BAIRRO: VILA SION - MONTES CLAROS / MG) | G147: DATA: | H147: =$H$2 -> AGOSTO / 2023
B148: SERVIÇO: | C148: =VLOOKUP(A146,ORÇAMENTO!$A$10:$I$30,3) -> IMPRIMAÇÃO COM EMULSÃO ASFÁLTICA (EAI) | E148: SINAPI | F148: =VLOOKUP(A146,ORÇAMENTO!$A$10:$I$30,4) -> 96401 | G148: UNIDADE: | H148: =VLOOKUP(A146,ORÇAMENTO!$A$10:$I$30,5) -> M2
B150: TIPO ITEM | C150: CODIGO ITEM | D150: DESCRIÇÃO ITEM | E150: UNIDADE ITEM | F150: COEFICIENTE | G150: PRECO UNITARIO | H150: CUSTO TOTAL
B151: COMPOSICAO | C151: 5839 | D151: VASSOURA MECÂNICA REBOCÁVEL COM ESCOVA CILÍNDRICA, LARGURA ÚTIL DE VARRIMENTO DE 2,44 M | E151: CHP | F151: 0,0020000 | G151: 10.13 | H151: =ROUNDDOWN(F151*G151,2) -> 0.02
B152: COMPOSICAO | C152: 5841 | D152: VASSOURA MECÂNICA REBOCÁVEL COM ESCOVA CILÍNDRICA, LARGURA ÚTIL DE VARRIMENTO DE 2,44 M | E152: CHI | F152: 0,0040000 | G152: 4.82 | H152: 0.01
B153: INSUMO | C153: ANP | D153: EMULSÃO ASFÁLTICA PARA IMPRIMAÇÃO - EAI (FORNECIMENTO COM BDI DIFERENCIADO) | E153: T | F153: =1.3/1000 -> 0.0013 | H153: 0
B154: COMPOSICAO | C154: 83362 | D154: ESPARGIDOR DE ASFALTO PRESSURIZADO, TANQUE 6 M3 COM ISOLAÇÃO TÉRMICA, AQUECIDO COM 2 MAÇARICOS, COM BARRA ESPARGIDORA 3,60 M, MONTADO SOBRE CAMINHÃO TOCO, PBT 14.300 KG, POTÊNCIA 185 CV | E154: CHP | F154: 0,0010000 | G154: 234.41 | H154: 0.23
B155: COMPOSICAO | C155: 88316 | D155: SERVENTE COM ENCARGOS COMPLEMENTARES | E155: H | F155: 0,0060000 | G155: 19.76 | H155: 0.11
B156: COMPOSICAO | C156: 89035 | D156: TRATOR DE PNEUS, POTÊNCIA 85 CV, TRAÇÃO 4X4, PESO COM LASTRO DE 4.675 KG | E156: CHP | F156: 0,0020000 | G156: 117.41 | H156: 0.23
B157: COMPOSICAO | C157: 89036 | D157: TRATOR DE PNEUS, POTÊNCIA 85 CV, TRAÇÃO 4X4, PESO COM LASTRO DE 4.675 KG | E157: CHI | F157: 0,0040000 | G157: 46.92 | H157: 0.18
B158: COMPOSICAO | C158: 91486 | D158: ESPARGIDOR DE ASFALTO PRESSURIZADO, TANQUE 6 M3 COM ISOLAÇÃO TÉRMICA, AQUECIDO COM 2 MAÇARICOS, COM BARRA ESPARGIDORA 3,60 M, MONTADO SOBRE CAMINHÃO TOCO, PBT 14.300 KG, POTÊNCIA 185 CV | E158: CHI | F158: 0,0050000 | G158: 66.12 | H158: 0.33
H159: 0
B160: PRODUÇÃO DA EQUIPE | E160: 1 | F160: CUSTO | H160: =SUM(H151:H159) -> 1.11
B161: TOTAL | H161: =H160/E160 -> 1.11 | I161: OK
B162: BDI % | H162: =1+$M$1 -> 1.2214
B163: TOTAL DO SERVIÇO - R$ | H163: =ROUND(H161*H162,2) -> 1.36
A165: 11 | B165: CODEVASF | E165: COMPOSIÇÃO DE PREÇO UNITÁRIO | I165: =H180 -> 0.91 | J165: =H182 -> 1.11
B166: OBRA: | C166: =$C$2 -> PAVIMENTAÇÃO ASFÁLTICA EM CBUQ - AV. CENTRAL (BAIRRO: VILA SION - MONTES CLAROS / MG) | G166: DATA: | H166: =$H$2 -> AGOSTO / 2023
B167: SERVIÇO: | C167: =VLOOKUP(A165,ORÇAMENTO!$A$10:$I$30,3) -> PINTURA DE LIGAÇÃO COM EMULSÃO ASFÁLTICA RR-1C | E167: SINAPI | F167: =VLOOKUP(A165,ORÇAMENTO!$A$10:$I$30,4) -> 96402 | G167: UNIDADE: | H167: M2
B169: TIPO ITEM | C169: CODIGO ITEM | D169: DESCRIÇÃO ITEM | E169: UNIDADE ITEM | F169: COEFICIENTE | G169: PRECO UNITARIO | H169: CUSTO TOTAL
B170: COMPOSICAO | C170: 5839 | D170: VASSOURA MECÂNICA REBOCÁVEL COM ESCOVA CILÍNDRICA, LARGURA ÚTIL DE VARRIMENTO DE 2,44 M | E170: CHP | F170: 0,0020000 | G170: 10.13 | H170: =ROUNDDOWN(F170*G170,2) -> 0.02
B171: COMPOSICAO | C171: 5841 | D171: VASSOURA MECÂNICA REBOCÁVEL COM ESCOVA CILÍNDRICA, LARGURA ÚTIL DE VARRIMENTO DE 2,44 M | E171: CHI | F171: 0,0040000 | G171: 4.82 | H171: 0.01
B172: INSUMO | C172: 41903 | D172: EMULSAO ASFALTICA CATIONICA RR-2C PARA USO EM PAVIMENTACAO ASFALTICA (FORNECIMENTO COM BDI DIFERENCIADO) | E172: KG | F172: 0,4500000 | H172: 0
B173: COMPOSICAO | C173: 83362 | D173: ESPARGIDOR DE ASFALTO PRESSURIZADO, TANQUE 6 M3 COM ISOLAÇÃO TÉRMICA, AQUECIDO COM 2 MAÇARICOS, COM BARRA ESPARGIDORA 3,60 M, MONTADO SOBRE CAMINHÃO TOCO, PBT 14.300 KG, POTÊNCIA 185 CV | E173: CHP | F173: 0,0004000 | G173: 234.41 | H173: 0.09
B174: COMPOSICAO | C174: 88316 | D174: SERVENTE COM ENCARGOS COMPLEMENTARES | E174: H | F174: 0,0055000 | G174: 19.76 | H174: 0.1
B175: COMPOSICAO | C175: 89035 | D175: TRATOR DE PNEUS, POTÊNCIA 85 CV, TRAÇÃO 4X4, PESO COM LASTRO DE 4.675 KG | E175: CHP | F175: 0,0017000 | G175: 117.41 | H175: 0.19
B176: COMPOSICAO | C176: 89036 | D176: TRATOR DE PNEUS, POTÊNCIA 85 CV, TRAÇÃO 4X4, PESO COM LASTRO DE 4.675 KG | E176: CHI | F176: 0,0038000 | G176: 46.92 | H176: 0.17
B177: COMPOSICAO | C177: 91486 | D177: ESPARGIDOR DE ASFALTO PRESSURIZADO, TANQUE 6 M3 COM ISOLAÇÃO TÉRMICA, AQUECIDO COM 2 MAÇARICOS, COM BARRA ESPARGIDORA 3,60 M, MONTADO SOBRE CAMINHÃO TOCO, PBT 14.300 KG, POTÊNCIA 185 CV | E177: CHI | F177: 0,0051000 | G177: 66.12 | H177: 0.33
H178: 0
B179: PRODUÇÃO DA EQUIPE | E179: 1 | F179: CUSTO | H179: =SUM(H170:H178) -> 0.91
B180: TOTAL | H180: =H179/E179 -> 0.91 | I180: OK
B181: BDI % | H181: =1+$M$1 -> 1.2214
B182: TOTAL DO SERVIÇO - R$ | H182: =ROUND(H180*H181,2) -> 1.11
A184: 12 | B184: CODEVASF | E184: COMPOSIÇÃO DE PREÇO UNITÁRIO | I184: =H202 -> 111.82 | J184: =H204 -> 136.58
B185: OBRA: | C185: =$C$2 -> PAVIMENTAÇÃO ASFÁLTICA EM CBUQ - AV. CENTRAL (BAIRRO: VILA SION - MONTES CLAROS / MG) | G185: DATA: | H185: =$H$2 -> AGOSTO / 2023
B186: SERVIÇO: | C186: =VLOOKUP(A184,ORÇAMENTO!$A$10:$I$30,3) -> EXECUÇÃO DE PAVIMENTO COM APLICAÇÃO DE CONCRETO ASFÁLTICO USINADO A QUENTE (CBUQ), CAMADA DE ROLAMENTO - EXCLUSIVE TRANSPORTE | E186: SINAPI | F186: =VLOOKUP(A184,ORÇAMENTO!$A$10:$I$30,4) -> 95995 | G186: UNIDADE: | H186: =VLOOKUP(A184,ORÇAMENTO!$A$10:$I$30,5) -> M3
B188: TIPO ITEM | C188: CODIGO ITEM | D188: DESCRIÇÃO ITEM | E188: UNIDADE ITEM | F188: COEFICIENTE | G188: PRECO UNITARIO | H188: CUSTO TOTAL
B189: INSUMO | C189: 1518 | D189: CONCRETO BETUMINOSO USINADO A QUENTE (CBUQ) PARA PAVIMENTACAO ASFALTICA, PADRAO DNIT, FAIXA C, COM CAP 50/70 - AQUISICAO POSTO USINA (FORNECIMENTO COM BDI DIFERENCIADO) | E189: T | F189: 2,5548000 | H189: =ROUNDDOWN(F189*G189,2) -> 0
B190: COMPOSICAO | C190: 5835 | D190: VIBROACABADORA DE ASFALTO SOBRE ESTEIRAS, LARGURA DE PAVIMENTAÇÃO 1,90 M A 5,30 M, POTÊNCIA 105 HP CAPACIDADE 450 T/H | E190: CHP | F190: 0,0464000 | G190: 357,51 | H190: 16.58
B191: COMPOSICAO | C191: 5837 | D191: VIBROACABADORA DE ASFALTO SOBRE ESTEIRAS, LARGURA DE PAVIMENTAÇÃO 1,90 M A 5,30 M, POTÊNCIA 105 HP CAPACIDADE 450 T/H | E191: CHI | F191: 0,0949000 | G191: 139,09 | H191: 13.19
B192: COMPOSICAO | C192: 88314 | D192: RASTELEIRO COM ENCARGOS COMPLEMENTARES | E192: H | F192: 1,1301000 | G192: 21,21 | H192: 23.96
B193: COMPOSICAO | C193: 91386 | D193: CAMINHÃO BASCULANTE 10 M3, TRUCADO CABINE SIMPLES, PESO BRUTO TOTAL 23.000 KG, CARGA ÚTIL MÁXIMA 15.935 KG, DISTÂNCIA ENTRE EIXOS 4,80 M, POTÊNCIA 230 CV INCLUSIVE CAÇAMBA METÁLICA | E193: CHP | F193: 0,0464000 | G193: 229,56 | H193: 10.65
B194: COMPOSICAO | C194: 95631 | D194: ROLO COMPACTADOR VIBRATORIO TANDEM, ACO LISO, POTENCIA 125 HP, PESO SEM/COM LASTRO 10,20/11,65 T, LARGURA DE TRABALHO 1,73 M | E194: CHP | F194: 0,0805000 | G194: 204,82 | H194: 16.48
B195: COMPOSICAO | C195: 95632 | D195: ROLO COMPACTADOR VIBRATORIO TANDEM, ACO LISO, POTENCIA 125 HP, PESO SEM/COM LASTRO 10,20/11,65 T, LARGURA DE TRABALHO 1,73 M | E195: CHI | F195: 0,0607000 | G195: 77,02 | H195: 4.67
B196: COMPOSICAO | C196: 96155 | D196: TRATOR DE PNEUS COM POTÊNCIA DE 85 CV, TRAÇÃO 4X4, COM VASSOURA MECÂNICA ACOPLADA | E196: CHI | F196: 0,1071000 | G196: 51,52 | H196: 5.51
B197: COMPOSICAO | C197: 96157 | D197: TRATOR DE PNEUS COM POTÊNCIA DE 85 CV, TRAÇÃO 4X4, COM VASSOURA MECÂNICA ACOPLADA | E197: CHP | F197: 0,0341000 | G197: 126,43 | H197: 4.31
B198: COMPOSICAO | C198: 96463 | D198: ROLO COMPACTADOR DE PNEUS, ESTATICO, PRESSAO VARIAVEL, POTENCIA 110 HP, PESO SEM/COM LASTRO 10,8/27 T, LARGURA DE ROLAGEM 2,30 M | E198: CHP | F198: 0,0419000 | G198: 197,38 | H198: 8.27
B199: COMPOSICAO | C199: 96464 | D199: ROLO COMPACTADOR DE PNEUS, ESTATICO, PRESSAO VARIAVEL, POTENCIA 110 HP, PESO SEM/COM LASTRO 10,8/27 T, LARGURA DE ROLAGEM 2,30 M | E199: CHI | F199: 0,0990000 | G199: 82,85 | H199: 8.2
H200: 0
B201: PRODUÇÃO DA EQUIPE | E201: 1 | F201: CUSTO | H201: =SUM(H189:H200) -> 111.82
B202: TOTAL | H202: =H201/E201 -> 111.82 | I202: OK
B203: BDI % | H203: =1+$M$1 -> 1.2214
B204: TOTAL DO SERVIÇO - R$ | H204: =ROUND(H202*H203,2) -> 136.58
A206: 13 | B206: CODEVASF | E206: COMPOSIÇÃO DE PREÇO UNITÁRIO | I206: =H215 -> 1.62 | J206: =H217 -> 1.98
B207: OBRA: | C207: =$C$2 -> PAVIMENTAÇÃO ASFÁLTICA EM CBUQ - AV. CENTRAL (BAIRRO: VILA SION - MONTES CLAROS / MG) | G207: DATA: | H207: =$H$2 -> AGOSTO / 2023
B208: SERVIÇO: | C208: =VLOOKUP(A206,ORÇAMENTO!$A$10:$I$30,3) -> TRANSPORTE COM CAMINHÃO BASCULANTE, EM VIA URBANA PAVIMENTADA | E208: SINAPI | F208: =VLOOKUP(A206,ORÇAMENTO!$A$10:$I$30,4) -> 95877 | G208: UNIDADE: | H208: =VLOOKUP(A206,ORÇAMENTO!$A$10:$I$30,5) -> M3XKM
B210: TIPO ITEM | C210: CODIGO ITEM | D210: DESCRIÇÃO ITEM | E210: UNIDADE ITEM | F210: COEFICIENTE | G210: PRECO UNITARIO | H210: CUSTO TOTAL
B211: COMPOSICAO | C211: 89883 | D211: CAMINHÃO BASCULANTE 18 M3, COM CAVALO MECÂNICO DE CAPACIDADE MÁXIMA DE TRAÇÃO COMBINADO DE 45000 KG, POTÊNCIA 330 CV, INCLUSIVE SEMIREBOQUE COM CAÇAMBA METÁLICA | E211: CHP | F211: 0,0046000 | G211: 316,09 | H211: =ROUNDDOWN(F211*G211,2) -> 1.45
B212: COMPOSICAO | C212: 89884 | D212: CAMINHÃO BASCULANTE 18 M3, COM CAVALO MECÂNICO DE CAPACIDADE MÁXIMA DE TRAÇÃO COMBINADO DE 45000 KG, POTÊNCIA 330 CV, INCLUSIVE SEMIREBOQUE COM CAÇAMBA METÁLICA | E212: CHI | F212: 0,0020000 | G212: 86,09 | H212: 0.17
H213: 0
B214: PRODUÇÃO DA EQUIPE | E214: 1 | F214: CUSTO | H214: =SUM(H211:H213) -> 1.62
B215: TOTAL | H215: =H214/E214 -> 1.62 | I215: OK
B216: BDI % | H216: =1+$M$1 -> 1.2214
B217: TOTAL DO SERVIÇO - R$ | H217: =ROUND(H215*H216,2) -> 1.98
A219: 14 | B219: CODEVASF | E219: COMPOSIÇÃO DE PREÇO UNITÁRIO | I219: =H228 -> 1.93 | J219: =H230 -> 2.36
B220: OBRA: | C220: =$C$2 -> PAVIMENTAÇÃO ASFÁLTICA EM CBUQ - AV. CENTRAL (BAIRRO: VILA SION - MONTES CLAROS / MG) | G220: DATA: | H220: =$H$2 -> AGOSTO / 2023
B221: SERVIÇO: | C221: =VLOOKUP(A219,ORÇAMENTO!$A$10:$I$30,3) -> TRANSPORTE COM CAMINHÃO CARROCERIA 9T, EM VIA URBANA PAVIMENTADA | E221: SINAPI | F221: =VLOOKUP(A219,ORÇAMENTO!$A$10:$I$30,4) -> 100947 | G221: UNIDADE: | H221: =VLOOKUP(A219,ORÇAMENTO!$A$10:$I$30,5) -> TXKM
B223: TIPO ITEM | C223: CODIGO ITEM | D223: DESCRIÇÃO ITEM | E223: UNIDADE ITEM | F223: COEFICIENTE | G223: PRECO UNITARIO | H223: CUSTO TOTAL
B224: COMPOSICAO | C224: 5824 | D224: CAMINHÃO TOCO, PBT 16.000 KG, CARGA ÚTIL MÁX. 10.685 KG, DIST. ENTRE EIXOS 4,8 M, POTÊNCIA 189 CV, INCLUSIVE CARROCERIA FIXA ABERTA DE MADEIRA P/ TRANSPORTE GERAL DE CARGA SECA, DIMEN. APROX. 2,5 X 7,00 X 0,50 M | E224: CHP | F224: 0,0093000 | G224: 184,66 | H224: =ROUNDDOWN(F224*G224,2) -> 1.71
B225: COMPOSICAO | C225: 5826 | D225: CAMINHÃO TOCO, PBT 16.000 KG, CARGA ÚTIL MÁX. 10.685 KG, DIST. ENTRE EIXOS 4,8 M, POTÊNCIA 189 CV, INCLUSIVE CARROCERIA FIXA ABERTA DE MADEIRA P/ TRANSPORTE GERAL DE CARGA SECA, DIMEN. APROX. 2,5 X 7,00 X 0,50 M | E225: CHI | F225: 0,0040000 | G225: 56,91 | H225: 0.22
H226: 0
B227: PRODUÇÃO DA EQUIPE | E227: 1 | F227: CUSTO | H227: =SUM(H224:H226) -> 1.93
B228: TOTAL | H228: =H227/E227 -> 1.93 | I228: OK
... 143 more rows

Sheet BDI SERV
B1: DETALHAMENTO DO BDI - SERVIÇOS
B4: Item | C4: Descrição dos Serviços | D4: % | E4: %
D5: PV | E5: CD
B7: 1 | C7: ADMINISTRAÇÃO CENTRAL | E7: 4.01
B8: 1.1 | C8: ESCRITÓRIO CENTRAL
B9: 1.2 | C9: VIAGENS
B10: 1.3 | C10: OUTROS
B12: 2 | C12: IMPOSTOS E TAXAS | D12: =SUM(D13:D16) -> 6.15 | E12: =SUM(E13:E16) -> 7.69
B13: 2.1 | C13: ISS (*) | D13: 2.5 | E13: =ROUND(D13*1.2515,2) -> 3.13
B14: 2.2 | C14: PIS | D14: 0.65 | E14: 0.81
B15: 2.3 | C15: Cofins | D15: 3 | E15: 3.75
B16: 2.4 | C16: CONTRIBUIÇÃO PREVIDENCIÁRIA SOBRE A RENDA BRUTA | D16: 0 | E16: 0
B18: 3 | C18: TAXA DE RISCO | E18: =SUM(E19:E22) -> 0.96
B19: 3.1 | C19: SEGURO | E19: 0.2
B20: 3.2 | C20: RISCO | E20: 0.56
B21: 3.3 | C21: GARANTIA | E21: 0.2
T22: =1/0.82 -> 1.219512195
B23: 4 | C23: DESPESAS FINANCEIRAS | E23: 1.11
B25: 5 | C25: LUCRO | E25: 8
C27: BDI - CALCULADO | E27: =ROUND((((1+(E7+E18)/100)*(1+E23/100)*(1+E25/100)/(1-D12/100)-1)*100),2) -> 22.14
A29: BDI = ((1+((AC+S+R+G)/100))x(1+DF/100)x(1+L/100)/(1-I/100)-1)*100
B31: BDI (CALCULADO): | D31: =ROUND((((1+((E7+E18)/100))*(1+E23/100)*(1+E25/100))/(1-D12/100)-1)*100,2) -> 22.14 | E31: %
A33: (*) ISS CONFORME LEI COMPLEMENTAR Nº 04 / 2005 - Atualizado até a LC nº 64, de 27/12/2017 - Considerando as deduções previstas no Art. 62 - § 4º (Alíquota sobre 50% do preço da obra)
A37: BDI EM CONFORMIDADE COM OS ACÓRDÃOS Nº 2369/2011 e ACÓRDÃO Nº 2.622/2013 - TCU - PLENÁRIO

Sheet BDI FORN
B1: DETALHAMENTO DO BDI - FORNECIMENTO (MATERIAL ASFÁLTICO)
B4: Item | C4: Descrição dos Serviços | D4: % | E4: %
D5: PV | E5: CD
B7: 1 | C7: ADMINISTRAÇÃO CENTRAL | E7: 3.72
B8: 1.1 | C8: ESCRITÓRIO CENTRAL
B9: 1.2 | C9: VIAGENS
B10: 1.3 | C10: OUTROS
B12: 2 | C12: IMPOSTOS E TAXAS | D12: =SUM(D13:D16) -> 3.65 | E12: =SUM(E13:E16) -> 4.56
B13: 2.1 | C13: ISS (*) | E13: =ROUND(D13*1.2515,2) -> 0
B14: 2.2 | C14: PIS | D14: 0.65 | E14: 0.81
B15: 2.3 | C15: Cofins | D15: 3 | E15: 3.75
B16: 2.4 | C16: CONTRIBUIÇÃO PREVIDENCIÁRIA SOBRE A RENDA BRUTA | D16: 0 | E16: 0
B18: 3 | C18: TAXA DE RISCO | E18: =SUM(E19:E22) -> 0.82
B19: 3.1 | C19: SEGURO | E19: 0.16
B20: 3.2 | C20: RISCO | E20: 0.5
B21: 3.3 | C21: GARANTIA | E21: 0.16
B23: 4 | C23: DESPESAS FINANCEIRAS | E23: 0.94
B25: 5 | C25: LUCRO | E25: 5
C27: BDI - CALCULADO | E27: =ROUND((((1+(E7+E18)/100)*(1+E23/100)*(1+E25/100)/(1-D12/100)-1)*100),2) -> 15
A29: BDI = ((1+((AC+S+R+G)/100))x(1+DF/100)x(1+L/100)/(1-I/100)-1)*100
B31: BDI (CALCULADO): | D31: =ROUND((((1+((E7+E18)/100))*(1+E23/100)*(1+E25/100))/(1-D12/100)-1)*100,2) -> 15 | E31: %
A37: BDI EM CONFORMIDADE COM OS ACÓRDÃOS Nº 2369/2011 e ACÓRDÃO Nº 2.622/2013 - TCU - PLENÁRIO

Sheet CRONOGRAMA
B1: CRONOGRAMA FÍSICO-FINANCEIRO
B2: OBRA: | C2: =ORÇAMENTO!C5 -> PAVIMENTAÇÃO ASFÁLTICA EM CBUQ - AV. CENTRAL (BAIRRO: VILA SION - MONTES CLAROS / MG) | F2: VALOR: | G2: =ORÇAMENTO!I40 -> 1668910.79
F3: PRAZO: | G3: 240 DIAS
B5: ITEM | C5: ETAPAS/DESCRIÇAO | D5: FISICO/ FINANCEIRO | E5: TOTAL ETAPAS | F5: MÊS 1 | G5: MÊS 2 | H5: MÊS 3 | I5: MÊS 4 | J5: MÊS 5 | K5: TOTAL
A6: A | B6: =VLOOKUP(A6,ORÇAMENTO!$A$9:$I$40,2) -> 1 | C6: =VLOOKUP(A6,ORÇAMENTO!$A$9:$I$40,3) -> SERVIÇOS PRELIMINARES | D6: FISICO | E6: =ROUND(E7/$G$2,4) -> 0.0883 | F6: 0.2 | G6: 0.2 | H6: 0.2 | I6: 0.2 | J6: 0.2 | K6: =SUM(F6:J6) -> 1
D7: FINANCEIRO | E7: =ORÇAMENTO!I9 -> 147410.91 | F7: =ROUND($E$7*F6,2) -> 29482.18 | G7: =ROUND($E$7*G6,2) -> 29482.18 | H7: =ROUND($E$7*H6,2) -> 29482.18 | I7: =ROUND($E$7*I6,2) -> 29482.18 | J7: 29482.18 | K7: =SUM(F7:J7) -> 147410.9
A8: B | B8: =VLOOKUP(A8,ORÇAMENTO!$A$9:$I$40,2) -> 2 | C8: =VLOOKUP(A8,ORÇAMENTO!$A$9:$I$40,3) -> TERRAPLANAGEM E PAVIMENTAÇÃO | D8: FISICO | E8: =ROUND(E9/$G$2,4) -> 0.2177 | F8: 0.1 | G8: 0.25 | H8: 0.25 | I8: 0.25 | J8: 0.15 | K8: =SUM(F8:J8) -> 1
D9: FINANCEIRO | E9: =ORÇAMENTO!I15 -> 363259.2 | F9: =ROUND($E$9*F8,2) -> 36325.92 | G9: =ROUND($E$9*G8,2) -> 90814.8 | H9: =ROUND($E$9*H8,2) -> 90814.8 | I9: =ROUND($E$9*I8,2) -> 90814.8 | J9: 54488.88 | K9: =SUM(F9:J9) -> 363259.2
A10: C | B10: =VLOOKUP(A10,ORÇAMENTO!$A$9:$I$40,2) -> 3 | C10: =VLOOKUP(A10,ORÇAMENTO!$A$9:$I$40,3) -> TRANSPORTE DE MATERIAIS | D10: FISICO | E10: =ROUND(E11/$G$2,4) -> 0.0722 | F10: 0.25 | G10: 0.25 | H10: 0.2 | I10: 0.2 | J10: 0.1 | K10: =SUM(F10:J10) -> 1
D11: FINANCEIRO | E11: =ORÇAMENTO!I23 -> 120504.01 | F11: =ROUND($E$11*F10,2) -> 30126 | G11: =ROUND($E$11*G10,2) -> 30126 | H11: =ROUND($E$11*H10,2) -> 24100.8 | I11: =ROUND($E$11*I10,2) -> 24100.8 | J11: 12050.4 | K11: =SUM(F11:J11)-0.04 -> 120503.96
A12: D | B12: =VLOOKUP(A12,ORÇAMENTO!$A$9:$I$40,2) -> 4 | C12: =VLOOKUP(A12,ORÇAMENTO!$A$9:$I$40,3) -> TRANSPORTE DE MATERIAL ASFÁLTICO (BDI DIFERENCIADO) | D12: FISICO | E12: =ROUND(E13/$G$2,4) -> 0.0139 | F12: 0.1 | G12: 0.25 | H12: 0.25 | I12: 0.25 | J12: 0.15 | K12: =SUM(F12:J12) -> 1
D13: FINANCEIRO | E13: =ORÇAMENTO!I26 -> 23244 | F13: =ROUND($E$13*F12,2) -> 2324.4 | G13: =ROUND($E$13*G12,2) -> 5811 | H13: =ROUND($E$13*H12,2) -> 5811 | I13: =ROUND($E$13*I12,2) -> 5811 | J13: 3486.6 | K13: =SUM(F13:J13)-0.02 -> 23243.98
A14: E | B14: =VLOOKUP(A14,ORÇAMENTO!$A$9:$I$40,2) -> 5 | C14: =VLOOKUP(A14,ORÇAMENTO!$A$9:$I$40,3) -> OBRAS COMPLEMENTARES | D14: FISICO | E14: =ROUND(E15/$G$2,4) -> 0.1606 | F14: 0.15 | G14: 0.25 | H14: 0.25 | I14: 0.2 | J14: 0.15 | K14: =SUM(F14:J14) -> 1
D15: FINANCEIRO | E15: =ORÇAMENTO!I29 -> 268101.64 | F15: =ROUND($E$15*F14,2) -> 40215.25 | G15: 67025.41 | H15: 67025.41 | I15: =ROUND($E$15*I14,2) -> 53620.33 | J15: 40215.25 | K15: =SUM(F15:J15)-0.02 -> 268101.63
A16: F | B16: =VLOOKUP(A16,ORÇAMENTO!$A$9:$I$40,2) -> 6 | C16: =VLOOKUP(A16,ORÇAMENTO!$A$9:$I$40,3) -> FORNECIMENTOS - MATERIAL ASFÁLTICO (BDI DIFERENCIADO) | D16: FISICO | E16: =ROUND(E17/$G$2,4) -> 0.4472 | F16: 0.1 | G16: 0.25 | H16: 0.25 | I16: 0.25 | J16: 0.15 | K16: =SUM(F16:J16) -> 1
D17: FINANCEIRO | E17: =ORÇAMENTO!I36 -> 746391.03 | F17: =ROUND($E$17*F16,2) -> 74639.1 | G17: =ROUND($E$17*G16,2) -> 186597.76 | H17: =ROUND($E$17*H16,2) -> 186597.76 | I17: =ROUND($E$17*I16,2) -> 186597.76 | J17: 111958.65 | K17: =SUM(F17:J17)-0.02 -> 746391.01
B18: TOTAL | D18: FISICO | E18: =SUM(F18:J18) -> 0.999999994 | F18: =F19/$E$19 -> 0.127695771 | G18: =G19/$E$19 -> 0.245583618 | H18: =H19/$E$19 -> 0.2419733592 | I18: 0.2339411264 | J18: 0.1508061195 | K18: =SUM(F18:J18) -> 0.999999994
D19: FINANCEIRO | E19: =E11+E9+E7+E13+E17+E15 -> 1668910.79 | F19: =F11+F9+F7+F13+F17+F15 -> 213112.85 | G19: =G11+G9+G7+G13+G17+G15 -> 409857.15 | H19: 403831.95 | I19: =I11+I9+I7+I13+I17+I15 -> 390426.87 | J19: 251681.96 | K19: =SUM(F19:J19)+0.01 -> 1668910.79
B21: OBSERVAÇÕES:
